Workbook

Sheet 2013_GDP_P_Current
A1: Current GDP estimates, 2013 base year
A3: ISIC Rev.4 | B3: Industry | C3: IC/GO | D3: 2013 | E3: 2014 | F3: 2015 | G3: 2016 | H3: 2017 (Provisional)
B4: Gross Domestic Product (GDP) market price | D4: =D30+D31 -> 4.91555345e+10 | E4: =E30+E31 -> 5.254450246e+10 | F4: 5.926000237e+10 | G4: 6.329469462e+10 | H4: 6.942023009e+10
A5: A | B5: Agriculture, forestry and fishing | D5: =SUM(D6:D9) -> 1.245062048e+10 | E5: =SUM(E6:E9) -> 1.171816383e+10 | F5: 1.395816221e+10 | G5: 1.579645186e+10 | H5: 1.599670571e+10
B6: Crop | D6: 7460447208 | E6: 6607838578 | F6: 8264048912 | G6: 8850244536 | H6: 8081655197
B7: Livestock | C7: 0.1493708023 | D7: 2475418410 | E7: 2689993823 | F7: 2695667993 | G7: 2957402638 | H7: 3113308321
B8: Forestry and logging | C8: 0.1813098868 | D8: 567908487.4 | E8: 572346609.1 | F8: 576784730.9 | G8: 581257267 | H8: 585764484.3
B9: Fishing and aquaculture | C9: 0.4787507125 | D9: 1946846376 | E9: 1847984820 | F9: 2421660576 | G9: 3407547421 | H9: 4215977708
B10: Industry | D10: =SUM(D11:D15) -> 5733730944 | E10: =SUM(E11:E15) -> 7156846532 | F10: 9002521338 | G10: 8918855828 | H10: 8973322893
A11: B | B11: Mining and quarrying | D11: 29432505.1 | E11: 91915114.86 | F11: 87611612.77 | G11: 72074057.93 | H11: 80663573.67
A12: C | B12: Manufacturing | C12: 0.5682428709 | D12: 2775502629 | E12: 3333746767 | F12: 3619274537 | G12: 3468065078 | H12: 3106872319
A13: D | B13: Electricity, gas, steam and air conditioning supply | D13: 374421400 | E13: 403238350 | F13: 844983463.3 | G13: 814453786.5 | H13: 855902960.3
A14: E | B14: Water supply, sewerage, waste management and remediation activities | D14: 220591743 | E14: 356285950 | F14: 245634800 | G14: 269723727.6 | H14: 285423446.5
A15: F | B15: Construction | D15: 2333782667 | E15: 2971660350 | F15: 4205016925 | G15: 4294539178 | H15: 4644460593
B16: Services | D16: =SUM(D17:D29) -> 2.807887653e+10 | E16: =SUM(E17:E29) -> 2.991800219e+10 | F16: 3.149874745e+10 | G16: 3.345008317e+10 | H16: 3.926053317e+10
A17: G | B17: Wholesale and retail trade; repair of motors and motocycles | C17: 0.5674787616 | D17: 1.558250912e+10 | E17: 1.716249598e+10 | F17: 1.891903072e+10 | G17: 2.000655166e+10 | H17: 2.528251949e+10
A18: H | B18: Transport and storage | C18: 0.4989055004 | D18: 1802101257 | E18: 2140820535 | F18: 1916215503 | G18: 2148537302 | H18: 2353573699
A19: I | B19: Accommodation and food service activities | C19: 0.528323599 | D19: 962379215.4 | E19: 876356310 | F19: 907008617.8 | G19: 1376385529 | H19: 1230375520
A20: J | B20: Information and Communication | C20: 0.6232815162 | D20: 1858339763 | E20: 1589919835 | F20: 1512683763 | G20: 1533688096 | H20: 1722729610
A21: K | B21: Financial and insurance activities | C21: 0.4313128832 | D21: 1808919457 | E21: 1964108994 | F21: 1742814368 | G21: 1584132919 | H21: 2022928620
A22: L | B22: Real estate activities | C22: 0.4429195858 | D22: 1159522384 | E22: 1124689678 | F22: 1132785095 | G22: 1170800398 | H22: 1206918923
A23: M | B23: Professional, scientific and technical activities | C23: 0.3998816226 | D23: 108495264.5 | E23: 110947336.8 | F23: 102204944.2 | G23: 104742183.2 | H23: 73829227.5
A24: N | B24: Administrative and support service activities | C24: 0.3299929415 | D24: 590235889.8 | E24: 870323781.7 | F24: 938249485.2 | G24: 970461578.1 | H24: 905898155.8
A25: O | B25: Public administration and defence; compulsory social security | C25: 0.5557042691 | D25: 1727435505 | E25: 1592915459 | F25: 1732861295 | G25: 1651124042 | H25: 1694960564
A26: P | B26: Education | C26: 0.2339573325 | D26: 1158866809 | E26: 1104892647 | F26: 1126693291 | G26: 1281635124 | H26: 1287488622
A27: Q | B27: Human health and social work activities | C27: 0.4197194776 | D27: 467754493.5 | E27: 419246927.2 | F27: 420497042.1 | G27: 512924767.7 | H27: 451722446.6
A28: R | B28: Arts, entertainment and recreation | C28: 0.5275427888 | D28: 214261357.1 | E28: 147399085.6 | F28: 279944051.8 | G28: 303160080.6 | H28: 325629470.5
A29: S | B29: Other service activities | C29: 0.6495412157 | D29: 638056016.4 | E29: 813885616 | F29: 767759274.9 | G29: 805939487.6 | H29: 701958815.5
B30: GDP basic price (Gross Value Added) | D30: =D5+D10+D16 -> 4.626322796e+10 | E30: =E5+E10+E16 -> 4.879301255e+10 | F30: 5.4459431e+10 | G30: 5.816539086e+10 | H30: 6.423056177e+10
B31: Taxes less subsidies on products (+) | D31: 2892306537 | E31: 3751489912 | F31: 4800571369 | G31: 5129303755 | H31: 5189668318
B33: Items
B34: Population estimates | C34: Population estimates | D34: 1857181 | E34: 1897597 | F34: 1958560 | G34: 2020414 | H34: 2083429
B35: GDP per Capita (GMD) | C35: GDP per Capita (GMD) | D35: =D4/D34 -> 26467.82112 | E35: =E4/E34 -> 27690.02189 | F35: 30256.92466 | G35: 31327.58663 | H35: 33320.18038
B36: GDP per Capita (USD) | C36: GDP per Capita (USD) | D36: =D35/D37 -> 680.8810539 | E36: =E35/E37 -> 666.7755952 | F36: =F35/F37 -> 711.8240559 | G36: =G35/G37 -> 714.9106978 | H36: =H35/H37 -> 714.9179389
B37: Exchange rate (1USD to GMD) annual average | C37: Exchange rate (1USD to GMD) annual average | D37: 38.8729 | E37: 41.52824742 | F37: 42.50618451 | G37: 43.82027955 | H37: 46.607

Sheet 2013_GDP_P_Constant
A1: Constant GDP estimates, 2013 base year
A3: ISIC Rev.4 | B3: Industry | C3: 2013 | D3: 2014 | E3: 2015 | F3: 2016 | G3: 2017 | H3: 2018
B4: Gross Domestic Product (GDP) market price | C4: =C30+C31 -> 4.91555345e+10 | D4: =D30+D31 -> 4.869335668e+10 | E4: 5.155080344e+10 | F4: 5.175989167e+10 | G4: 5.411896882e+10
A5: A | B5: Agriculture, forestry and fishing | C5: =SUM(C6:C9) -> 1.245062048e+10 | D5: =SUM(D6:D9) -> 1.091014005e+10 | E5: 1.209162861e+10 | F5: 1.260210539e+10 | G5: 1.158132235e+10
B6: Crop | C6: 7460447208 | D6: 6227453225 | E6: 7447053591 | F6: 7517778334 | G6: 6366585754
B7: Livestock | C7: 2475418410 | D7: 2406895849 | E7: 2015129065 | F7: 1954384914 | G7: 1846121177
B8: Forestry and logging | C8: 567908487.4 | D8: 532332101.9 | E8: 527693514.5 | F8: 447824635.9 | G8: 402228942.8
B9: Fishing and aquaculture | C9: 1946846376 | D9: 1743458877 | E9: 2101752439 | F9: 2682117505 | G9: 2966386473
B10: Industry | C10: =SUM(C11:C15) -> 5733730944 | D10: =SUM(D11:D15) -> 6302785887 | E10: 7784093646 | F10: 7307049314 | G10: 7320289907
A11: B | B11: Mining and quarrying | C11: 29432505.1 | D11: 91915114.86 | E11: 87611612.77 | F11: 72074057.93 | G11: 80663573.67
A12: C | B12: Manufacturing | C12: 2775502629 | D12: 2876241697 | E12: 2901503946 | F12: 2667559502 | G12: 2347495602
A13: D | B13: Electricity, gas, steam and air conditioning supply | C13: 374421400 | D13: 378574627.8 | E13: 802657031.5 | F13: 784579320.3 | G13: 814498724.1
A14: E | B14: Water supply, sewerage, waste management and remediation activities | C14: 220591743 | D14: 334524054.5 | E14: 233330601.1 | F14: 259830161.5 | G14: 271616110.5
A15: F | B15: Construction | C15: 2333782667 | D15: 2621530393 | E15: 3758990454 | F15: 3523006272 | G15: 3806015898
B16: Services | C16: =SUM(C17:C29) -> 2.807887653e+10 | D16: =SUM(D17:D29) -> 2.842996592e+10 | E16: 2.827036052e+10 | F16: 2.821432534e+10 | G16: 3.120175969e+10
A17: G | B17: Wholesale and retail trade; repair of motors and motocycles | C17: 1.558250912e+10 | D17: 1.619898072e+10 | E17: 1.671862241e+10 | F17: 1.648778937e+10 | G17: 1.928631796e+10
A18: H | B18: Transport and storage | C18: 1802101257 | D18: 2031998223 | E18: 1755015028 | F18: 1972419940 | G18: 2103226464
A19: I | B19: Accommodation and food service activities | C19: 962379215.4 | D19: 823885996.3 | E19: 711927740.4 | F19: 852493259.2 | G19: 857503630.5
A20: J | B20: Information and Communication | C20: 1858339763 | D20: 1584793879 | E20: 1498573203 | F20: 1513460345 | G20: 1695060551
A21: K | B21: Financial and insurance activities | C21: 1808919457 | D21: 1878284911 | E21: 1596069139 | F21: 1375012287 | G21: 1642822359
A22: L | B22: Real estate activities | C22: 1159522384 | D22: 1106913984 | E22: 1095608095 | F22: 1092666148 | G22: 1079371194
A23: M | B23: Professional, scientific and technical activities | C23: 108495264.5 | D23: 106099360.8 | E23: 93599272.65 | F23: 90915217.49 | G23: 59956789.61
A24: N | B24: Administrative and support service activities | C24: 590235889.8 | D24: 832293947.4 | E24: 859248738.8 | F24: 842351407.7 | G24: 735680799.8
A25: O | B25: Public administration and defence; compulsory social security | C25: 1727435505 | D25: 1503488002 | E25: 1531318074 | F25: 1360723521 | G25: 1292970362
A26: P | B26: Education | C26: 1158866809 | D26: 1098439002 | E26: 1111559587 | F26: 1257045735 | G26: 1258805630
A27: Q | B27: Human health and social work activities | C27: 467754493.5 | D27: 342773664 | E27: 327812635.6 | F27: 390887272.8 | G27: 338092865.8
A28: R | B28: Arts, entertainment and recreation | C28: 214261357.1 | D28: 143692324.6 | E28: 267892768.3 | F28: 279013041.8 | G28: 281889634.1
A29: S | B29: Other service activities | C29: 638056016.4 | D29: 778321914.5 | E29: 703113829.6 | F29: 699547799.9 | G29: 570061457.3
B30: GDP basic price (Gross Value Added) | C30: =C5+C10+C16 -> 4.626322796e+10 | D30: =D5+D10+D16 -> 4.564289186e+10 | E30: 4.814608278e+10 | F30: 4.812348004e+10 | G30: 5.010337195e+10
B31: Taxes less subsidies on products (+) | C31: 2892306537 | D31: 3050464816 | E31: 3404720666 | F31: 3636411631 | G31: 4015596877
B32: Items
B33: Growth rate
B34: GDP growth rate | D34: -0.009402355589 | E34: 0.05868247652 | F34: 0.004055964554 | G34: 0.04557732011
B35: Agriculture | D35: -0.1237272015 | E35: 0.108292703 | F35: 0.0422173717 | G35: -0.08100099235
B36: Industry | D36: 0.09924688641 | E36: 0.2350242869 | F36: -0.06128450573 | G36: 0.001812030057
B37: Services | D37: 0.01250368373 | E37: -0.005613985081 | F37: -0.001982117682 | G37: 0.1058836006

Sheet 2013_Contribution to GDP
A1: Contribution to GDP estimates, 2013 base year: market price
A3: ISIC Rev.4 | B3: Industy | C3: 2013 | D3: 2014 | E3: 2015 | F3: 2016 | G3: 2017
B4: Gross Domestic Product (GDP) market price | C4: 100 | D4: 100 | E4: 100 | F4: 100 | G4: 100
A5: A | B5: Agriculture, forestry and fishing | C5: 25.32903082 | D5: 22.30140791 | E5: 23.55410337 | F5: 24.95699199 | G5: 23.04329111
B6: Crop | C6: 15.17722731 | D6: 12.5756992 | E6: 13.94540766 | F6: 13.9826009 | G6: 11.64164277
B7: Livestock | C7: 5.03588952 | D7: 5.119458167 | E7: 4.548882695 | F7: 4.672433695 | G7: 4.484727747
B8: Forestry and logging | C8: 1.155329696 | D8: 1.089260688 | E8: 0.9733120281 | F8: 0.9183348945 | G8: 0.8437950775
B9: Fishing and aquaculture | C9: 3.960584288 | D9: 3.516989853 | E9: 4.086500978 | F9: 5.383622501 | G9: 6.073125518
B10: Industry | C10: 11.66446668 | D10: 13.62054296 | E10: 15.19156426 | F10: 14.09100065 | G10: 12.92609212
A11: B | B11: Mining and quarrying | C11: 0.05987627925 | D11: 0.1749281286 | E11: 0.1478427426 | F11: 0.1138706149 | G11: 0.1161960621
A12: C | B12: Manufacturing | C12: 5.646368526 | D12: 6.344615727 | E12: 6.107449193 | F12: 5.479235028 | G12: 4.475456672
A13: D | B13: Electricity, gas, steam and air conditioning supply | C13: 0.7617075144 | D13: 0.7674225297 | E13: 1.425891714 | F13: 1.286764699 | G13: 1.232930169
A14: E | B14: Water supply, sewerage, waste management and remediation activities | C14: 0.4487627797 | D14: 0.678065132 | E14: 0.4145035272 | F14: 0.4261395513 | G14: 0.4111531266
A15: F | B15: Construction | C15: 4.747751582 | D15: 5.655511445 | E15: 7.09587708 | F15: 6.784990755 | G15: 6.690356093
B16: Services | C16: 57.1225129 | D16: 56.93840609 | E16: 53.15346978 | F16: 52.84816267 | G16: 56.5548877
A17: G | B17: Wholesale and retail trade; repair of motors and motocycles | C17: 31.70041641 | D17: 32.66278141 | E17: 31.92546399 | F17: 31.60857602 | G17: 36.41952707
A18: H | B18: Transport and storage | C18: 3.666120764 | D18: 4.074299754 | E18: 3.233573113 | F18: 3.394498251 | G18: 3.390328289
A19: I | B19: Accommodation and food service activities | C19: 1.95782474 | D19: 1.667836346 | E19: 1.530557849 | F19: 2.17456698 | G19: 1.772358747
A20: J | B20: Information and Communication | C20: 3.78053007 | D20: 3.025853819 | E20: 2.55262184 | F20: 2.423091075 | G20: 2.481595938
A21: K | B21: Financial and insurance activities | C21: 3.67999143 | D21: 3.737991419 | E21: 2.940962366 | F21: 2.502789418 | G21: 2.914033298
A22: L | B22: Real estate activities | C22: 2.358884704 | D22: 2.140451666 | E22: 1.911550877 | F22: 1.849760719 | G22: 1.738569465
A23: M | B23: Professional, scientific and technical activities | C23: 0.2207183089 | D23: 0.2111492765 | E23: 0.1724686805 | F23: 0.1654833534 | G23: 0.1063511708
A24: N | B24: Administrative and support service activities | C24: 1.200751646 | D24: 1.656355548 | E24: 1.583276152 | F24: 1.533243164 | G24: 1.304948362
A25: O | B25: Public administration and defence; compulsory social security | C25: 3.514223825 | D25: 3.031554938 | E25: 2.924166767 | F25: 2.608629446 | G25: 2.441594564
A26: P | B26: Education | C26: 2.357551028 | D26: 2.102774973 | E26: 1.901271087 | F26: 2.024869749 | G26: 1.854630301
A27: Q | B27: Human health and social work activities | C27: 0.9515805255 | D27: 0.7978892321 | E27: 0.7095798605 | F27: 0.8103756102 | G27: 0.650707216
A28: R | B28: Arts, entertainment and recreation | C28: 0.4358845027 | D28: 0.2805223737 | E28: 0.4723996635 | F28: 0.4789660215 | G28: 0.469069996
A29: S | B29: Other service activities | C29: 1.298034948 | D29: 1.548945328 | E29: 1.29557753 | F29: 1.273312862 | G29: 1.011173277
B30: GDP basic price (Gross Value Added) | C30: 94.1160104 | D30: 92.86035696 | E30: 91.8991374 | F30: 91.8961553 | G30: 92.52427093
B31: Taxes less subsidies on products (+) | C31: 5.883989599 | D31: 7.139643039 | E31: 8.100862601 | F31: 8.1038447 | G31: 7.475729066
A35: Contribution to GDP estimates, 2013 base year: basic price
A37: ISIC Rev.4 | B37: Industry | C37: 2013 | D37: 2014 | E37: 2015 | F37: 2016 | G37: 2017
B38: Gross Domestic Product (GDP) market price | C38: 106.2518477 | D38: 107.6885802 | E38: 108.8149496 | F38: 108.8184807 | G38: 108.0797492
A39: A | B39: Agriculture, forestry and fishing | C39: 26.91256324 | D39: 24.01606955 | E39: 25.63038569 | F39: 27.1578195 | G39: 24.90513125
B40: Crop | C40: 16.12608445 | D40: 13.54259193 | E40: 15.17468831 | F40: 15.21565385 | G40: 12.58225831
B41: Livestock | C41: 5.350725661 | D41: 5.513071815 | E41: 4.94986441 | F41: 5.084471357 | G41: 4.847082502
B42: Forestry and logging | C42: 1.227559149 | D42: 1.17300937 | E42: 1.059108992 | F42: 0.9993180797 | G42: 0.9119716038
B43: Fishing and aquaculture | C43: 4.208193984 | D43: 3.787396439 | E43: 4.446723978 | F43: 5.858376211 | G43: 6.56381883
B44: Industry | C44: 12.39371137 | D44: 14.66776933 | E44: 16.53069298 | F44: 15.33361282 | G44: 13.97048795
A45: B | B45: Mining and quarrying | C45: 0.06361965301 | D45: 0.1883776181 | E45: 0.1608750058 | F45: 0.123912273 | G45: 0.1255844125
A46: C | B46: Manufacturing | C46: 5.999370885 | D46: 6.832426596 | E46: 6.645817759 | F46: 5.96242031 | G46: 4.837062347
A47: D | B47: Electricity, gas, steam and air conditioning supply | C47: 0.8093283079 | D47: 0.8264264265 | E47: 1.551583349 | F47: 1.400237795 | G47: 1.332547835
A48: E | B48: Water supply, sewerage, waste management and remediation activities | C48: 0.4768187451 | D48: 0.7301987136 | E48: 0.451041804 | F48: 0.4637185852 | G48: 0.4443732682
A49: F | B49: Construction | C49: 5.044573779 | D49: 6.090339979 | E49: 7.721375065 | F49: 7.383323853 | G49: 7.230920087
B50: Services | C50: 60.69372539 | D50: 61.31616112 | E50: 57.83892132 | F50: 57.50856768 | G50: 61.1243808
A51: G | B51: Wholesale and retail trade; repair of motors and motocycles | C51: 33.68227815 | D51: 35.17408556 | E51: 34.73967754 | F51: 34.39597219 | G51: 39.36213353
A52: H | B52: Transport and storage | C52: 3.89532105 | D52: 4.387555559 | E52: 3.518610951 | F52: 3.693841423 | G52: 3.664258313
A53: I | B53: Accommodation and food service activities | C53: 2.08022496 | D53: 1.796069282 | E53: 1.665475752 | F53: 2.366330749 | G53: 1.91556089
A54: J | B54: Information and Communication | C54: 4.016883051 | D54: 3.258499018 | E54: 2.777634168 | F54: 2.636770893 | G54: 2.682102667
A55: K | B55: Financial and insurance activities | C55: 3.910058888 | D55: 4.025389888 | E55: 3.200206715 | F55: 2.723497419 | G55: 3.14947988
A56: L | B56: Real estate activities | C56: 2.506358582 | D56: 2.305022009 | E56: 2.080053123 | F56: 2.01288151 | G56: 1.879041518
A57: M | B57: Professional, scientific and technical activities | C57: 0.2345172813 | D57: 0.2273836581 | E57: 0.1876717077 | F57: 0.1800764709 | G57: 0.1149440787
A58: N | B58: Administrative and support service activities | C58: 1.27582081 | D58: 1.783705773 | E58: 1.722841146 | F58: 1.668451916 | G58: 1.410384918
A59: O | B59: Public administration and defence; compulsory social security | C59: 3.733927745 | D59: 3.264638471 | E59: 3.181930593 | F59: 2.83867093 | G59: 2.638869282
A60: P | B60: Education | C60: 2.504941527 | D60: 2.264448513 | E60: 2.068867174 | F60: 2.203432497 | G60: 2.004479779
A61: Q | B61: Human health and social work activities | C61: 1.01107189 | D61: 0.8592355858 | E61: 0.7721289672 | F61: 0.8818384268 | G61: 0.7032827273
A62: R | B62: Arts, entertainment and recreation | C62: 0.4631353378 | D62: 0.3020905614 | E62: 0.5140414556 | F62: 0.5212035476 | G62: 0.5069696754
A63: S | B63: Other service activities | C63: 1.379186115 | D63: 1.668037232 | E63: 1.409782036 | F63: 1.385599711 | G63: 1.092873542
B64: GDP basic price (Gross Value Added) | C64: 100 | D64: 100 | E64: 100 | F64: 100 | G64: 100
B65: Taxes less subsidies on products (+) | C65: 6.251847666 | D65: 7.688580221 | E65: 8.814949553 | F65: 8.818480679 | G65: 8.079749227

Sheet 2013_GDP Growth
A1: GDP Growth, 2013 base year
A3: ISIC Rev.4 | B3: Industry | C3: 2013 | D3: 2014 | E3: 2015 | F3: 2016 | G3: 2017
B4: Gross Domestic Product (GDP) market price | D4: -0.009402355589 | E4: 0.05868247652 | F4: 0.004055964554 | G4: 0.04557732011
A5: A | B5: Agriculture, forestry and fishing | D5: -0.1237272015 | E5: 0.108292703 | F5: 0.0422173717 | G5: -0.08100099235
B6: Crop | D6: -0.1652707872 | E6: 0.1958425574 | F6: 0.009497010071 | G6: -0.1531293593
B7: Livestock | D7: -0.02768120369 | E7: -0.1627684822 | F7: -0.0301440499 | G7: -0.05539529922
B8: Forestry and logging | D8: -0.06264457441 | E8: -0.008713709744 | F8: -0.1513546715 | G8: -0.1018159553
B9: Fishing and aquaculture | D9: -0.1044702354 | E9: 0.2055073207 | F9: 0.2761338849 | G9: 0.1059867687
B10: Industry | D10: 0.09924688641 | E10: 0.2350242869 | F10: -0.06128450573 | G10: 0.001812030057
A11: B | B11: Mining and quarrying | D11: 2.122911711 | E11: -0.04682039618 | F11: -0.1773458374 | G11: 0.1191762471
A12: C | B12: Manufacturing | D12: 0.03629579276 | E12: 0.008783076029 | F12: -0.08062868373 | G12: -0.1199837906
A13: D | B13: Electricity, gas, steam and air conditioning supply | D13: 0.01109238896 | E13: 1.120208203 | F13: -0.02252233581 | G13: 0.0381343264
A14: E | B14: Water supply, sewerage, waste management and remediation activities | D14: 0.5164849325 | E14: -0.3024997816 | F14: 0.1135708745 | G14: 0.04536020351
A15: F | B15: Construction | D15: 0.1232967107 | E15: 0.433891617 | F15: -0.06277860635 | G15: 0.08033185389
B16: Services | D16: 0.01250368373 | E16: -0.005613985081 | F16: -0.001982117682 | G16: 0.1058836006
A17: G | B17: Wholesale and retail trade; repair of motors and motocycles | D17: 0.03956176684 | E17: 0.03207866608 | F17: -0.01380694162 | G17: 0.1697334027
A18: H | B18: Transport and storage | D18: 0.1275716141 | E18: -0.1363107468 | F18: 0.1238763818 | G18: 0.06631778648
A19: I | B19: Accommodation and food service activities | D19: -0.1439071177 | E19: -0.1358904708 | F19: 0.1974435196 | G19: 0.00587731493
A20: J | B20: Information and Communication | D20: -0.1471990691 | E20: -0.05440497831 | F20: 0.009934210614 | G20: 0.119990066
A21: K | B21: Financial and insurance activities | D21: 0.03834634789 | E21: -0.1502518447 | F21: -0.1385007992 | G21: 0.1947692206
A22: L | B22: Real estate activities | D22: -0.04537075032 | E22: -0.01021388157 | F22: -0.002685219019 | G22: -0.01216744383
A23: M | B23: Professional, scientific and technical activities | D23: -0.02208302545 | E23: -0.117814924 | F23: -0.02867602578 | G23: -0.3405197582
A24: N | B24: Administrative and support service activities | D24: 0.4101039293 | E24: 0.0323861438 | F24: -0.01966523817 | G24: -0.1266343321
A25: O | B25: Public administration and defence; compulsory social security | D25: -0.1296415997 | E25: 0.01851033868 | F25: -0.1114037356 | G25: -0.04979200983
A26: P | B26: Education | D26: -0.05214387581 | E26: 0.01194475551 | F26: 0.1308847042 | G26: 0.001400025015
A27: Q | B27: Human health and social work activities | D27: -0.2671932205 | E27: -0.04364695989 | F27: 0.1924106345 | G27: -0.1350629981
A28: R | B28: Arts, entertainment and recreation | D28: -0.3293595891 | E28: 0.8643498815 | F28: 0.04151016706 | G28: 0.01030988475
A29: S | B29: Other service activities | D29: 0.2198332036 | E29: -0.09662850744 | F29: -0.005071767272 | G29: -0.1851000641
B30: GDP basic price (Gross Value Added) | D30: -0.01340883723 | E30: 0.05484295163 | F30: -0.0004694615305 | G30: 0.04114191043
B31: Taxes less subsidies on products (+) | D31: 0.05468240555 | E31: 0.1161317605 | F31: 0.06804991891 | G31: 0.1042745663

Sheet 2013_Deflator
A1: GDP Deflator, 2013 base year
A3: ISIC Rev.4 | B3: Industry | C3: 2013 | D3: 2014 | E3: 2015 | F3: 2016 | G3: 2017
B4: Gross Domestic Product (GDP) market price | C4: 100 | D4: 107.9089758 | E4: 114.954566 | F4: 122.2852146 | G4: 128.2733792
A5: A | B5: Agriculture, forestry and fishing | C5: 100 | D5: 107.4061724 | E5: 115.4365773 | F5: 125.3477207 | G5: 138.1250364
B6: Crop | C6: 100 | D6: 106.1082009 | E6: 110.970719 | F6: 117.7242018 | G6: 126.9386059
B7: Livestock | C7: 100 | D7: 111.7619536 | E7: 133.7714809 | F7: 151.3214013 | G7: 168.6405183
B8: Forestry and logging | C8: 100 | D8: 107.5168315 | E8: 109.3029789 | F8: 129.7957326 | G8: 145.6296208
B9: Fishing and aquaculture | C9: 100 | D9: 105.9953203 | E9: 115.221019 | F9: 127.0469103 | G9: 142.1250315
B10: Industry | C10: 100 | D10: 113.5505261 | E10: 115.6527882 | F10: 122.0582405 | G10: 122.5815235
A11: B | B11: Mining and quarrying | C11: 100 | D11: 100 | E11: 100 | F11: 100 | G11: 100
A12: C | B12: Manufacturing | C12: 100 | D12: 115.90635 | E12: 124.7378809 | F12: 130.0089117 | G12: 132.3483766
A13: D | B13: Electricity, gas, steam and air conditioning supply | C13: 100 | D13: 106.5148904 | E13: 105.2732899 | F13: 103.807705 | G13: 105.083401
A14: E | B14: Water supply, sewerage, waste management and remediation activities | C14: 100 | D14: 106.5053305 | E14: 105.2732899 | F14: 103.807705 | G14: 105.083401
A15: F | B15: Construction | C15: 100 | D15: 113.3559374 | E15: 111.865592 | F15: 121.8998448 | G15: 122.0294586
B16: Services | C16: 100 | D16: 105.2340417 | E16: 111.4196879 | F16: 118.5570903 | G16: 125.8279454
A17: G | B17: Wholesale and retail trade; repair of motors and motocycles | C17: 100 | D17: 105.9479994 | E17: 113.1614212 | F17: 121.3416257 | G17: 131.0904422
A18: H | B18: Transport and storage | C18: 100 | D18: 105.3554334 | E18: 109.1851336 | F18: 108.9289993 | G18: 111.903009
A19: I | B19: Accommodation and food service activities | C19: 100 | D19: 106.3686376 | E19: 127.4017806 | F19: 161.4541246 | G19: 143.4834182
A20: J | B20: Information and Communication | C20: 100 | D20: 100.3234462 | E20: 100.9415997 | F20: 101.3365234 | G20: 101.6323346
A21: K | B21: Financial and insurance activities | C21: 100 | D21: 104.5692792 | E21: 109.194165 | F21: 115.2086373 | G21: 123.1373927
A22: L | B22: Real estate activities | C22: 100 | D22: 101.6058786 | E22: 103.3932754 | F22: 107.150789 | G22: 111.816855
A23: M | B23: Professional, scientific and technical activities | C23: 100 | D23: 104.5692792 | E23: 109.194165 | F23: 115.2086373 | G23: 123.1373927
A24: N | B24: Administrative and support service activities | C24: 100 | D24: 104.5692792 | E24: 109.194165 | F24: 115.2086373 | G24: 123.1373927
A25: O | B25: Public administration and defence; compulsory social security | C25: 100 | D25: 105.9479994 | E25: 113.1614212 | F25: 121.3416257 | G25: 131.0904422
A26: P | B26: Education | C26: 100 | D26: 100.5875288 | E26: 101.3614838 | F26: 101.9561253 | G26: 102.2785879
A27: Q | B27: Human health and social work activities | C27: 100 | D27: 122.3101339 | E27: 128.2735918 | F27: 131.2206366 | G27: 133.608985
A28: R | B28: Arts, entertainment and recreation | C28: 100 | D28: 102.5796514 | E28: 104.4985475 | F28: 108.6544481 | G28: 115.516653
A29: S | B29: Other service activities | C29: 100 | D29: 104.5692792 | E29: 109.194165 | F29: 115.2086373 | G29: 123.1373927
B30: GDP basic price (Gross Value Added) | C30: 100 | D30: 106.9016676 | E30: 113.1129011 | F30: 120.8669672 | G30: 128.196086
B31: Taxes less subsidies on products (+) | C31: 100 | D31: 122.9809271 | E31: 140.9975102 | F31: 141.0539916 | G31: 129.2377815
